fUSD/lending_fUSD_20241205
["ID","MTS","AMOUNT","RATE_DAILY","PERIOD"]
[344403734,1733417764477,-759.82,8e-05,2]
[344403735,1733417764502,-759.82,8e-05,2]
[344403736,1733417764531,-759.82,8e-05,2]
[344403737,1733417764558,-759.82,8e-05,2]
[344403738,1733417764584,-759.82,8e-05,2]
[344403739,1733417764611,-759.82,8e-05,2]
[344403740,1733417764648,-759.82,8e-05,2]
[344403741,1733417764680,-759.82,8e-05,2]
[344403742,1733417764706,-759.82,8e-05,2]
[344403743,1733417764734,-759.82,8e-05,2]
[344403744,1733417764763,-759.82,8e-05,2]
[344403745,1733417764790,-759.82,8e-05,2]
[344403746,1733417764817,-759.82,8e-05,2]
[344403747,1733417764847,-502.17,8.062e-05,2]
[344403748,1733417764876,-405.29,8.067e-05,2]
[344403749,1733417764904,-500.0,8.11e-05,2]
[344403750,1733417764930,-500.0,8.11e-05,2]
[344403751,1733417764956,-381.0,8.11e-05,2]
[344403752,1733417764983,-433.98,8.14e-05,2]
[344403753,1733417765009,-500.0,8.164e-05,2]
[344403754,1733417765039,-608.0,8.164e-05,2]
[344403755,1733417765065,-683.324502,8.178e-05,2]
[344403756,1733417765092,-48915.0,8.219e-05,2]
[344403757,1733417765119,-24727.64,8.219e-05,2]
[344403758,1733417765146,-1001.65,8.219e-05,2]
[344403759,1733417765172,-300.0,8.219e-05,2]
[344403760,1733417765205,-250.0,8.219e-05,2]
[344403761,1733417765232,-240.57,8.219e-05,2]
[344403762,1733417765259,-8903.94,8.219e-05,2]
[344403763,1733417765288,-1138.37,8.219e-05,2]
[344403764,1733417765318,-500.0,8.219e-05,2]
[344403765,1733417765344,-1000.0,8.219e-05,2]
[344403766,1733417765370,-500.0,8.333e-05,2]
[344403767,1733417765396,-500.0,8.333e-05,2]
[344403768,1733417765421,-435.12,8.356e-05,2]
[344403769,1733417765447,-150.0,8.356e-05,2]
[344403770,1733417765472,-174.85,8.356e-05,2]
[344403771,1733417765497,-300.0,8.356e-05,2]
[344403772,1733417765527,-435.12,8.356e-05,2]
[344403773,1733417765559,-150.0,8.356e-05,2]
[344403774,1733417765585,-364.12,8.356e-05,2]
[344403775,1733417765611,-435.12,8.356e-05,2]
[344403776,1733417765640,-150.0,8.356e-05,2]
[344403777,1733417765667,-435.12,8.356e-05,2]
[344403778,1733417765694,-150.0,8.356e-05,2]
[344403779,1733417765721,-150.0,8.356e-05,2]
[344403780,1733417765747,-435.07,8.356e-05,2]
[344403781,1733417765776,-435.12,8.356e-05,2]
[344403782,1733417765806,-433.0,8.468e-05,2]
[344403783,1733417765832,-1324.44185316,8.5e-05,2]
[344403784,1733417765858,-19339.94352557,8.5e-05,2]
[344403785,1733417765883,-150.0,8.63e-05,2]
[344403786,1733417765908,-1001.65,8.676e-05,2]
[344403787,1733417765933,-181.35,8.685e-05,2]
[344403788,1733417766324,-200.0,8.74e-05,2]
[344403789,1733417766350,-24003.53,8.767e-05,2]
[344403790,1733417766376,-2141.0159,8.8e-05,2]
[344403791,1733417766405,-502.17,8.869e-05,2]
[344403792,1733417766433,-405.29,8.874e-05,2]
[344403793,1733417766459,-500.0,8.999e-05,2]
[344403794,1733417766485,-500.0,8.999e-05,2]
[344403795,1733417766513,-10073.52105288,9e-05,2]
[344403796,1733417766538,-162809.43090399,9e-05,2]
[344403797,1733417766564,-28000.0,9e-05,2]
[344403798,1733417766589,-4494.47802397,9e-05,2]
[344403799,1733417766614,-515.594761,9e-05,2]
[344403800,1733417766639,-515.594761,9e-05,2]
[344403801,1733417766664,-11619.31592684,9.073e-05,2]
[344403802,1733417766690,-1001.65,9.132e-05,2]
[344403803,1733417766717,-1000.0,9.247e-05,2]
[344403804,1733417766742,-736.0,9.314e-05,2]
[344403805,1733417766769,-1200.0,9.315e-05,2]
[344403806,1733417766794,-1200.0,9.315e-05,2]
[344403807,1733417766820,-1074.98274186,9.315e-05,2]
[344403808,1733417766845,-13993.48437674,9.4e-05,2]
[344403809,1733417766870,-1055.0,9.422e-05,2]
[344403810,1733417766896,-1001.65,9.589e-05,2]
[344403811,1733417766922,-151.94364693,9.617e-05,2]
[344403812,1733417766947,-150.0,9.617e-05,2]
[344403813,1733417766972,-258.89932418,9.617e-05,2]
[344403814,1733417766997,-500.0,9.617e-05,2]
[344403815,1733417767025,-500.0,9.617e-05,2]
[344403816,1733417767050,-150.0,9.617e-05,2]
[344403817,1733417767076,-265.49585095,9.617e-05,2]
[344403818,1733417767102,-500.0,9.617e-05,2]
[344403819,1733417767127,-200.02704492,9.617e-05,2]
[344403820,1733417767155,-500.0,9.617e-05,2]
[344403821,1733417767180,-150.0,9.617e-05,2]
[344403822,1733417767209,-1610.0,9.617e-05,2]
[344403823,1733417767234,-500.0,9.617e-05,2]
[344403824,1733417767264,-19137.75,9.67e-05,2]
[344403825,1733417767291,-20736.49,9.67e-05,2]
[344403826,1733417767316,-9999.99,9.67e-05,2]
[344403827,1733417767344,-502.17,9.675e-05,2]
[344403828,1733417767373,-405.29,9.681e-05,2]
[344403829,1733417767399,-500.0,9.798e-05,2]
[344403830,1733417767424,-500.0,9.798e-05,2]
[344403831,1733417767450,-500.0,9.799e-05,2]
[344403832,1733417767475,-430.23547426,9.799e-05,2]
[344403833,1733417767501,-186373.0267176,9.8e-05,5]
[344403834,1733417767530,-66404.8036113,9.8e-05,2]
[344403835,1733417767556,-351.72002909,9.8e-05,2]
[344403836,1733417767582,-1450.16576455,9.8e-05,2]
[344403837,1733417767608,-18664.12613026,9.8e-05,2]
[344403838,1733417767634,-4691.03335626,9.8e-05,2]
[344403839,1733417767660,-1051.11722539,9.8e-05,2]
[344403840,1733417767686,-20528.0,9.8e-05,2]
[344403841,1733417767713,-2565.7463879,9.8e-05,2]
[344403842,1733417767739,-1427.45000002,9.8e-05,2]
[344403843,1733417767768,-12327.23208717,9.8e-05,2]
[344403844,1733417767794,-515.594761,9.8e-05,2]
[344403845,1733417767819,-515.594761,9.8e-05,2]
[344403846,1733417767847,-2604.1,9.8e-05,2]
[344403847,1733417767874,-19931.68798146,9.858e-05,2]
[344403848,1733417767899,-151.0,9.88e-05,2]
[344403849,1733417767926,-151.0,9.88e-05,2]
[344403850,1733417767951,-500.0,9.89e-05,2]
[344403851,1733417767976,-168.00929737,9.891e-05,2]
[344403852,1733417768001,-931.05656706,9.891e-05,2]
[344403853,1733417768029,-500.0,9.891e-05,2]
[344403854,1733417768055,-150.0,9.891e-05,2]
[344403855,1733417768081,-500.0,9.891e-05,2]
[344403856,1733417768107,-500.0,9.891e-05,2]
[344403857,1733417768132,-1610.0,9.891e-05,2]
[344403858,1733417768158,-500.0,9.891e-05,2]
[344403859,1733417768186,-4317.0,9.9e-05,3]
[344403860,1733417768213,-1055.0,9.918e-05,2]
[344403861,1733417768238,-1300.0,9.978e-05,10]
[344403862,1733417768267,-3054.5953782,9.993e-05,2]
[344403863,1733417768296,-3153.2340211,9.993e-05,2]
[344403864,1733417768321,-3251.8726641,9.993e-05,2]
[344403865,1733417768347,-3350.511307,9.993e-05,2]
[344403866,1733417768373,-8773.6199044,9.993e-05,2]
[344403867,1733417768398,-9056.9366302,9.993e-05,2]
[344403868,1733417768423,-9340.253356,9.993e-05,2]
[344403869,1733417768448,-9623.5700817,9.993e-05,2]
[344403870,1733417768472,-48848.56891365,9.996e-05,2]
[344403871,1733417768498,-1831.17745081,9.996e-05,2]
[344403872,1733417768528,-3391.45866319,9.998e-05,2]
[344403873,1733417768554,-500.0,9.998e-05,2]
[344403874,1733417768580,-164.213363,9.999e-05,2]
[344403875,1733417768607,-164.213363,9.999e-05,2]
[344403876,1733417768632,-151.0,9.999e-05,2]
[344403877,1733417768658,-151.0,9.999e-05,2]
[344403878,1733417768684,-112884.54,9.999e-05,2]
[344403879,1733417768709,-515.594761,9.999e-05,2]
[344403880,1733417768735,-515.594761,9.999e-05,2]
[344403881,1733417768762,-2000.0,9.999e-05,2]
[344403882,1733417768787,-500.0,9.999e-05,2]
[344403883,1733417768811,-500.0,9.999e-05,2]
[344403884,1733417768837,-500.0,9.999e-05,2]
[344403885,1733417768862,-500.0,9.999e-05,2]
[344403886,1733417768887,-500.0,9.999e-05,2]
[344403887,1733417768912,-500.0,9.999e-05,2]
[344403888,1733417768937,-500.0,9.999e-05,2]
[344403889,1733417768962,-565.29055087,9.999e-05,2]
[344403890,1733417768993,-2000.0,9.999e-05,2]
[344403891,1733417769019,-85584.09045807,0.0001,2]
[344403892,1733417769044,-32014736.74302636,0.0001,2]
[344403893,1733417769071,-1000.0,0.0001,2]
[344403894,1733417769097,-1000.0,0.0001,2]
[344403895,1733417769123,-3000.0,0.0001,2]
[344403896,1733417769149,-93467.12360634,0.0001,2]
[344403897,1733417769175,-510.07,0.0001,2]
[344403898,1733417769204,-500.0,0.0001,2]
[344403899,1733417769231,-4034294.93357209,0.0001,2]
[344403900,1733417769258,-150.77063648,0.0001,2]
[344403901,1733417769293,-317778.77452921,0.0001,2]
[344403902,1733417769320,-1000.0,0.0001,2]
[344403903,1733417769348,-1000.0,0.0001,2]
[344403904,1733417769376,-1000.0,0.0001,2]
[344403905,1733417769401,-1000.0,0.0001,2]
[344403906,1733417769428,-1000.0,0.0001,2]
[344403907,1733417769454,-1000.0,0.0001,2]
[344403908,1733417769481,-1000.0,0.0001,2]
[344403909,1733417769508,-1000.0,0.0001,2]
[344403910,1733417769540,-1000.0,0.0001,2]
[344403911,1733417769565,-1000.0,0.0001,2]
[344403912,1733417769591,-1000.0,0.0001,2]
[344403913,1733417769617,-1000.0,0.0001,2]
[344403914,1733417769644,-1000.0,0.0001,2]
[344403915,1733417769669,-1000.0,0.0001,2]
[344403916,1733417769695,-1000.0,0.0001,2]
[344403917,1733417769720,-1000.0,0.0001,2]
[344403918,1733417769746,-1000.0,0.0001,2]
[344403919,1733417769772,-1000.0,0.0001,2]
[344403920,1733417769796,-1000.0,0.0001,2]
[344403921,1733417769821,-1000.0,0.0001,2]
[344403922,1733417769846,-1000.0,0.0001,2]
[344403923,1733417769871,-1000.0,0.0001,2]
[344403924,1733417769896,-1000.0,0.0001,2]
[344403925,1733417769922,-1000.0,0.0001,2]
[344403926,1733417769947,-1000.0,0.0001,2]
[344403927,1733417769972,-1000.0,0.0001,2]
[344403928,1733417769997,-1000.0,0.0001,2]
[344403929,1733417770027,-1000.0,0.0001,2]
[344403930,1733417770052,-1000.0,0.0001,2]
[344403931,1733417770079,-1000.0,0.0001,2]
[344403932,1733417770109,-1000.0,0.0001,2]
[344403933,1733417770137,-1000.0,0.0001,2]
[344403934,1733417770164,-1000.0,0.0001,2]
[344403935,1733417770190,-1000.0,0.0001,2]
[344403936,1733417770219,-1000.0,0.0001,2]
[344403937,1733417770246,-1000.0,0.0001,2]
[344403938,1733417770278,-1000.0,0.0001,2]
[344403939,1733417770307,-1000.0,0.0001,2]
[344403940,1733417770571,-1000.0,0.0001,2]
[344403941,1733417770597,-1000.0,0.0001,2]
[344403942,1733417770625,-1000.0,0.0001,2]
[344403943,1733417770652,-1148.43098898,0.0001,2]
[344403944,1733417770678,-10032807.93235138,0.0001,2]
[344403945,1733417770703,-22599.56304028,0.0001,2]
[344403946,1733417770730,-213.37374048,0.0001,2]
[344403947,1733417770755,-2606.05124865,0.0001,2]
[344403948,1733417770787,-300.0,0.0001,2]
[344403949,1733417770819,-1000.0,0.0001,2]
[344403950,1733417770846,-24358472.2369083,0.0001,2]
[344403970,1733418632186,-2399.8,7.379e-05,2]
[344403971,1733418632199,-100.2,7.379e-05,2]
[344403972,1733418632208,-300.0,7.395e-05,2]
[344403973,1733418632218,-151.61663114,7.395e-05,2]
[344403974,1733418632238,-1632.4004,7.396e-05,2]
[344403975,1733418632249,-150.0,7.396e-05,2]
[344403976,1733418632259,-500.0,7.397e-05,2]
[344403977,1733418632269,-437.91,7.397e-05,2]
[344403978,1733418632279,-500.0,7.397e-05,2]
[344403979,1733418632289,-500.0,7.397e-05,2]
[344403980,1733418632298,-500.0,7.397e-05,2]
[344403981,1733418632308,-500.0,7.397e-05,2]
[344403982,1733418632318,-257.56,7.397e-05,2]
[344403983,1733418632328,-500.0,7.397e-05,2]
[344403984,1733418632337,-344.82,7.397e-05,2]
[344403985,1733418632347,-500.0,7.397e-05,2]
[344403986,1733418632356,-500.0,7.397e-05,2]
[344403987,1733418632366,-500.0,7.397e-05,2]
[344403988,1733418632376,-500.4253631,7.397e-05,2]
[344403989,1733418632385,-197.42378755,7.397e-05,2]
[344403990,1733418632394,-500.0,7.397e-05,2]
[344403991,1733418632404,-623.58,7.397e-05,2]
[344403992,1733418632414,-500.0,7.397e-05,2]
[344403993,1733418632423,-578.14006739,7.397e-05,2]
[344403994,1733418632433,-500.0,7.397e-05,2]
[344403995,1733418632443,-500.0,7.397e-05,2]
[344403996,1733418632454,-509.89907864,7.397e-05,2]
[344403997,1733418632468,-500.0,7.397e-05,2]
[344403998,1733418632480,-500.0,7.397e-05,2]
[344403999,1733418632489,-500.0,7.397e-05,2]
[344404000,1733418632500,-500.0,7.397e-05,2]
[344404001,1733418632510,-500.0,7.397e-05,2]
[344404002,1733418632520,-500.0,7.397e-05,2]
[344404003,1733418632530,-500.0,7.397e-05,2]
[344404004,1733418632541,-500.0,7.397e-05,2]
[344404006,1733418632552,-533.39116661,7.397e-05,2]
[344404008,1733418632561,-500.0,7.397e-05,2]
[344404010,1733418632571,-507.92042758,7.397e-05,2]
[344404012,1733418632580,-500.0,7.397e-05,2]
[344404014,1733418632590,-500.0,7.397e-05,2]
[344404016,1733418632599,-566.4,7.397e-05,2]
[344404018,1733418632609,-500.0,7.397e-05,2]
[344404020,1733418632618,-500.0,7.397e-05,2]
[344404022,1733418632627,-500.0,7.397e-05,2]
[344404024,1733418632637,-500.0,7.397e-05,2]
[344404026,1733418632646,-592.8,7.397e-05,2]
[344404028,1733418632656,-500.0,7.397e-05,2]
[344404030,1733418632665,-500.0,7.397e-05,2]
[344404032,1733418632674,-500.0,7.397e-05,2]
[344404036,1733418632684,-500.0,7.397e-05,2]
[344404041,1733418632694,-500.0,7.397e-05,2]
[344404044,1733418632703,-500.0,7.397e-05,2]
[344404048,1733418632712,-373.09,7.397e-05,2]
[344404051,1733418632722,-500.0,7.397e-05,2]
[344404055,1733418632736,-500.0,7.397e-05,2]
[344404058,1733418632746,-500.0,7.397e-05,2]
[344404059,1733418632756,-500.0,7.397e-05,2]
[344404060,1733418632765,-242.68373957,7.397e-05,2]
[344404061,1733418632775,-500.0,7.397e-05,2]
[344404062,1733418632784,-500.0,7.397e-05,2]
[344404063,1733418632794,-500.0,7.397e-05,2]
[344404064,1733418632804,-500.0,7.397e-05,2]
[344404065,1733418632813,-500.0,7.397e-05,2]
[344404066,1733418632822,-500.0,7.397e-05,2]
[344404067,1733418632832,-500.0,7.397e-05,2]
[344404068,1733418632842,-500.0,7.397e-05,2]
[344404069,1733418632852,-152.30086547,7.397e-05,2]
[344404070,1733418632861,-500.0,7.397e-05,2]
[344404071,1733418632871,-500.0,7.397e-05,2]
[344404072,1733418632881,-500.0,7.397e-05,2]
[344404073,1733418632890,-504.13,7.397e-05,2]
[344404074,1733418632899,-500.0,7.397e-05,2]
[344404075,1733418632909,-500.0,7.397e-05,2]
[344404076,1733418632919,-500.0,7.397e-05,2]
[344404077,1733418632928,-542.53676086,7.397e-05,2]
[344404078,1733418632938,-500.0,7.397e-05,2]
[344404079,1733418632947,-500.0,7.397e-05,2]
[344404080,1733418632957,-500.0,7.397e-05,2]
[344404081,1733418632966,-500.0,7.397e-05,2]
[344404082,1733418632976,-500.0,7.397e-05,2]
[344404083,1733418632990,-500.0,7.397e-05,2]
[344404084,1733418632999,-314.59470259,7.397e-05,2]
[344404085,1733418633009,-500.0,7.397e-05,2]
[344404086,1733418633019,-195.63,7.397e-05,2]
[344404087,1733418633029,-500.0,7.397e-05,2]
[344404088,1733418633039,-500.0,7.397e-05,2]
[344404089,1733418633049,-540.64,7.397e-05,2]
[344404090,1733418633059,-500.0,7.397e-05,2]
[344404091,1733418633069,-502.18566544,7.397e-05,2]
[344404092,1733418633079,-502.17846346,7.397e-05,2]
[344404093,1733418633088,-500.0,7.397e-05,2]
[344404094,1733418633098,-500.0,7.397e-05,2]
[344404095,1733418633107,-500.0,7.397e-05,2]
[344404096,1733418633116,-500.0,7.397e-05,2]
[344404097,1733418633126,-500.0,7.397e-05,2]
[344404098,1733418633135,-500.0,7.397e-05,2]
[344404099,1733418633145,-239.44194281,7.397e-05,2]
[344404100,1733418633154,-500.0,7.397e-05,2]
[344404101,1733418633165,-500.0,7.397e-05,2]
[344404102,1733418633174,-500.0,7.397e-05,2]
[344404103,1733418633184,-500.0,7.397e-05,2]
[344404104,1733418633193,-500.0,7.397e-05,2]
[344404105,1733418633202,-500.0,7.397e-05,2]
[344404106,1733418633212,-500.0,7.397e-05,2]
[344404107,1733418633221,-500.0,7.397e-05,2]
[344404108,1733418633234,-411.59,7.397e-05,2]
[344404109,1733418633244,-500.0,7.397e-05,2]
[344404110,1733418633253,-500.0,7.397e-05,2]
[344404111,1733418633262,-500.0,7.397e-05,2]
[344404112,1733418633272,-152.54932268,7.397e-05,2]
[344404113,1733418633282,-500.0,7.397e-05,2]
[344404114,1733418633291,-177.2,7.397e-05,2]
[344404115,1733418633301,-500.0,7.397e-05,2]
[344404116,1733418633310,-550.02,7.397e-05,2]
[344404117,1733418633320,-500.0,7.397e-05,2]
[344404118,1733418633329,-500.0,7.397e-05,2]
[344404119,1733418633339,-500.0,7.397e-05,2]
[344404120,1733418633348,-405.84133311,7.397e-05,2]
[344404121,1733418633358,-500.0,7.397e-05,2]
[344404122,1733418633367,-500.0,7.397e-05,2]
[344404123,1733418633377,-500.0,7.397e-05,2]
[344404124,1733418633386,-561.83733895,7.397e-05,2]
[344404125,1733418633395,-500.0,7.397e-05,2]
[344404126,1733418633404,-174.28,7.397e-05,2]
[344404127,1733418633414,-500.0,7.397e-05,2]
[344404128,1733418633423,-500.0,7.397e-05,2]
[344404129,1733418633432,-500.0,7.397e-05,2]
[344404130,1733418633442,-500.0,7.397e-05,2]
[344404131,1733418633453,-561.26,7.397e-05,2]
[344404132,1733418633463,-500.0,7.397e-05,2]
[344404133,1733418633474,-500.0,7.397e-05,2]
[344404134,1733418633486,-500.0,7.397e-05,2]
[344404135,1733418633498,-609.67,7.397e-05,2]
[344404136,1733418633513,-500.0,7.397e-05,2]
[344404137,1733418633523,-500.0,7.397e-05,2]
[344404138,1733418633534,-500.0,7.397e-05,2]
[344404139,1733418633543,-500.0,7.397e-05,2]
[344404140,1733418633553,-347.50998479,7.397e-05,2]
[344404141,1733418633562,-500.0,7.397e-05,2]
[344404142,1733418633572,-500.0,7.397e-05,2]
[344404143,1733418633581,-305.66,7.397e-05,2]
[344404144,1733418633591,-500.0,7.397e-05,2]
[344404145,1733418633601,-500.0,7.397e-05,2]
[344404146,1733418633611,-500.0,7.397e-05,2]
[344404147,1733418633621,-502.83,7.397e-05,2]
[344404148,1733418633632,-504.02769082,7.397e-05,2]
[344404149,1733418633642,-502.11489202,7.397e-05,2]
[344404150,1733418633653,-500.0,7.397e-05,2]
[344404151,1733418633664,-500.0,7.397e-05,2]
[344404152,1733418633674,-500.0,7.397e-05,2]
[344404153,1733418633684,-464.27,7.397e-05,2]
[344404154,1733418633694,-500.0,7.397e-05,2]
[344404155,1733418633704,-500.0,7.397e-05,2]
[344404156,1733418633714,-500.0,7.397e-05,2]
[344404157,1733418633724,-500.0,7.397e-05,2]
[344404158,1733418633736,-500.0,7.397e-05,2]
[344404159,1733418633746,-522.33515402,7.397e-05,2]
[344404160,1733418633756,-502.24,7.397e-05,2]
[344404161,1733418633766,-500.0,7.397e-05,2]
[344404162,1733418633776,-500.0,7.397e-05,2]
[344404163,1733418633785,-451.86,7.397e-05,2]
[344404164,1733418633795,-502.06283152,7.397e-05,2]
[344404165,1733418633805,-510.82,7.397e-05,2]
[344404166,1733418633814,-500.0,7.397e-05,2]
[344404167,1733418633824,-500.0,7.397e-05,2]
[344404168,1733418633834,-457.37582209,7.397e-05,2]
[344404169,1733418633843,-610.55482813,7.397e-05,2]
[344404170,1733418633853,-500.0,7.397e-05,2]
[344404171,1733418633862,-500.0,7.397e-05,2]
[344404172,1733418633872,-500.0,7.397e-05,2]
[344404173,1733418633881,-326.5,7.397e-05,2]
[344404174,1733418633891,-504.11219719,7.397e-05,2]
[344404175,1733418633901,-500.0,7.397e-05,2]
[344404176,1733418633911,-500.0,7.397e-05,2]
[344404177,1733418633922,-403.67112067,7.397e-05,2]
[344404178,1733418633932,-500.0,7.397e-05,2]
[344404179,1733418633942,-500.0,7.397e-05,2]
[344404180,1733418633951,-500.0,7.397e-05,2]
[344404181,1733418633961,-238.08848339,7.397e-05,2]
[344404182,1733418633971,-533.4,7.397e-05,2]
[344404183,1733418633982,-500.0,7.397e-05,2]
[344404184,1733418634343,-500.0,7.397e-05,2]
[344404185,1733418634352,-500.0,7.397e-05,2]
[344404186,1733418634362,-360.51437903,7.397e-05,2]
[344404187,1733418634371,-500.0,7.397e-05,2]
[344404188,1733418634380,-500.0,7.397e-05,2]
[344404189,1733418634390,-500.0,7.397e-05,2]
[344404190,1733418634399,-335.66,7.397e-05,2]
[344404191,1733418634409,-500.25046466,7.397e-05,2]
[344404192,1733418634419,-521.24094098,7.397e-05,2]
[344404193,1733418634428,-500.0,7.397e-05,2]
[344404194,1733418634437,-500.0,7.397e-05,2]
[344404195,1733418634447,-500.0,7.397e-05,2]
[344404196,1733418634460,-500.0,7.397e-05,2]
[344404197,1733418634470,-500.0,7.397e-05,2]
[344404198,1733418634482,-374.38914479,7.397e-05,2]
[344404199,1733418634491,-500.0,7.397e-05,2]
[344404200,1733418634502,-500.0,7.397e-05,2]
[344404201,1733418634511,-501.21,7.397e-05,2]
[344404202,1733418634521,-500.0,7.397e-05,2]
[344404203,1733418634530,-500.0,7.397e-05,2]
[344404204,1733418634541,-500.0,7.397e-05,2]
[344404205,1733418634550,-500.0,7.397e-05,2]
[344404206,1733418634559,-500.0,7.397e-05,2]
[344404207,1733418634569,-500.0,7.397e-05,2]
[344404208,1733418634578,-500.0,7.397e-05,2]
[344404209,1733418634587,-500.68169959,7.397e-05,2]
[344404210,1733418634596,-500.0,7.397e-05,2]
[344404211,1733418634607,-500.0,7.397e-05,2]
[344404212,1733418634616,-500.0,7.397e-05,2]
[344404213,1733418634625,-500.0,7.397e-05,2]
[344404214,1733418634635,-311.68106957,7.397e-05,2]
[344404215,1733418634644,-500.0,7.397e-05,2]
[344404216,1733418634658,-500.0,7.397e-05,2]
[344404217,1733418634668,-500.0,7.397e-05,2]
[344404218,1733418634677,-637.94,7.397e-05,2]
[344404219,1733418634686,-500.0,7.397e-05,2]
[344404220,1733418634695,-506.6808421,7.397e-05,2]
[344404221,1733418634705,-502.61937204,7.397e-05,2]
[344404222,1733418634714,-500.0,7.397e-05,2]
[344404223,1733418634723,-500.0,7.397e-05,2]
[344404224,1733418634735,-363.41440295,7.397e-05,2]
[344404225,1733418634745,-500.0,7.397e-05,2]
[344404226,1733418634754,-500.0,7.397e-05,2]
[344404227,1733418634763,-500.0,7.397e-05,2]
[344404228,1733418634773,-549.52,7.397e-05,2]
[344404229,1733418634782,-166.84,7.561e-05,2]
[344404230,1733418634792,-856.70596995,7.677e-05,2]
[344404231,1733418634802,-211.13895462,7.677e-05,2]
[344404232,1733418634811,-200.0,7.677e-05,2]
[344404233,1733418634820,-1102.07898573,7.678e-05,2]
[344404234,1733418634830,-916.19318642,7.678e-05,2]
[344404235,1733418634839,-1469.43864764,7.678e-05,2]
[344404236,1733418634849,-46815.77500904,7.678e-05,2]
[344404237,1733418634858,-200.0,7.678e-05,2]
[344404238,1733418634868,-1102.07898573,7.678e-05,2]
[344404239,1733418634877,-687.14488982,7.678e-05,2]
[344404240,1733418634886,-211.13895462,7.679e-05,2]
[344404241,1733418634896,-687.14488982,7.679e-05,2]
[344404242,1733418634905,-8806.99526621,7.679e-05,2]
[344404243,1733418634915,-200.0,7.679e-05,2]
[344404244,1733418634924,-1142.2746266,7.679e-05,2]
[344404245,1733418634933,-916.19318642,7.679e-05,2]
[344404246,1733418634943,-6605.24644965,7.68e-05,2]
[344404247,1733418634952,-619.91942947,7.68e-05,2]
[344404248,1733418634962,-200.0,7.68e-05,2]
[344404249,1733418634971,-619.91942947,7.68e-05,2]
[344404250,1733418634984,-200.0,7.68e-05,2]
[344404251,1733418634993,-386.51900052,7.68e-05,2]
[344404252,1733418635003,-200.0,7.68e-05,2]
[344404253,1733418635013,-1102.07898573,7.68e-05,2]
[344404254,1733418635023,-826.5592393,7.68e-05,2]
[344404255,1733418635032,-6605.24644965,7.681e-05,2]
[344404256,1733418635042,-200.0,7.681e-05,2]
[344404257,1733418635052,-18355.25504175,7.681e-05,2]
[344404258,1733418635071,-259.39241418,7.681e-05,2]
[344404259,1733418635084,-12054.55782245,7.681e-05,2]
[344404260,1733418635096,-757.72761587,7.681e-05,2]
[344404261,1733418635111,-1914.7218,7.681e-05,2]
[344404262,1733418635122,-13474.12031479,7.681e-05,2]
[344404263,1733418635131,-1469.43864764,7.681e-05,2]
[344404264,1733418635142,-856.70596995,7.681e-05,2]
[344404265,1733418635152,-856.70596995,7.681e-05,2]
[344404266,1733418635162,-1142.2746266,7.681e-05,2]
[344404267,1733418635172,-1469.43864764,7.681e-05,2]
[344404268,1733418635182,-200.0,7.681e-05,2]
[344404269,1733418635192,-6605.24644965,7.681e-05,2]
[344404270,1733418635201,-916.19318642,7.681e-05,2]
[344404271,1733418635211,-200.0,7.682e-05,2]
[344404272,1733418635221,-687.14488982,7.682e-05,2]
[344404273,1733418635235,-200.0,7.682e-05,2]
[344404274,1733418635245,-200.0,7.682e-05,2]
[344404275,1733418635254,-200.0,7.683e-05,2]
[344404276,1733418635263,-200.0,7.683e-05,2]
[344404277,1733418635272,-481.8971081,7.683e-05,2]
[344404278,1733418635282,-200.0,7.683e-05,2]
[344404279,1733418635291,-200.0,7.683e-05,2]
[344404280,1733418635301,-1102.07898573,7.684e-05,2]
[344404281,1733418635310,-200.0,7.684e-05,2]
[344404282,1733418635319,-1142.2746266,7.684e-05,2]
[344404283,1733418635329,-41573.87124402,7.684e-05,2]
[344404284,1733418635348,-5241.90376502,7.684e-05,2]
[344404285,1733418635357,-1142.2746266,7.684e-05,2]